[Event "Early-Titled-Tuesday-Blitz-May-28-2024"]
[Site "Chess.com"]
[Date "2024.05.28"]
[Round "5"]
[White "twofoxniel"]
[Black "kingofthenil"]
[Result "1-0"]
[WhiteElo "2696"]
[BlackElo "2919"]
[TimeControl "180+1"]
[EndTime "8:57:55 PDT"]
[Termination "twofoxniel won on time"]

1. e4 {[%clk 0:02:58.4]} 1... Nc6 {[%clk 0:02:58.8]} 2. Nf3 {[%clk 0:02:57.3]}
2... d5 {[%clk 0:02:57.7]} 3. exd5 {[%clk 0:02:50.7]} 3... Qxd5 {[%clk
0:02:57.4]} 4. Nc3 {[%clk 0:02:51.6]} 4... Qh5 {[%clk 0:02:48.5]} 5. Be2 {[%clk
0:02:47.3]} 5... Bg4 {[%clk 0:02:47.9]} 6. h3 {[%clk 0:02:45.7]} 6... O-O-O
{[%clk 0:02:46.8]} 7. d3 {[%clk 0:02:43.3]} 7... e5 {[%clk 0:02:46.1]} 8. O-O
{[%clk 0:02:33.2]} 8... Bxf3 {[%clk 0:02:43.9]} 9. Bxf3 {[%clk 0:02:33.2]} 9...
Qg6 {[%clk 0:02:44.8]} 10. Re1 {[%clk 0:02:27]} 10... Nge7 {[%clk 0:02:42.4]}
11. Be3 {[%clk 0:02:11.4]} 11... f5 {[%clk 0:02:37.2]} 12. b4 {[%clk 0:01:47.2]}
12... e4 {[%clk 0:02:18.6]} 13. Be2 {[%clk 0:01:30.3]} 13... Qf6 {[%clk
0:02:16.5]} 14. Bd2 {[%clk 0:01:28]} 14... Ng6 {[%clk 0:02:07]} 15. dxe4 {[%clk
0:01:26.1]} 15... Nh4 {[%clk 0:01:18]} 16. Bd3 {[%clk 0:01:18.1]} 16... Ne5
{[%clk 0:01:13.3]} 17. Bf4 {[%clk 0:00:58]} 17... Bxb4 {[%clk 0:01:07.3]} 18.
Nd5 {[%clk 0:00:51.3]} 18... Qg6 {[%clk 0:01:07.3]} 19. Bg3 {[%clk 0:00:51]}
19... Rxd5 {[%clk 0:00:42]} 20. exd5 {[%clk 0:00:46]} 20... Bxe1 {[%clk
0:00:21.3]} 21. Bxh4 {[%clk 0:00:46.1]} 21... Bc3 {[%clk 0:00:20.3]} 22. Rb1
{[%clk 0:00:45.7]} 22... Kb8 {[%clk 0:00:17.3]} 23. Bg3 {[%clk 0:00:43.5]} 23...
Qf6 {[%clk 0:00:15]} 24. Bxe5 {[%clk 0:00:37.4]} 24... Bxe5 {[%clk 0:00:14.7]}
25. Qf3 {[%clk 0:00:37.8]} 25... g6 {[%clk 0:00:14.6]} 26. d6 {[%clk 0:00:37.9]}
26... c6 {[%clk 0:00:15.2]} 27. Qxc6 {[%clk 0:00:37.5]} 27... Qg7 {[%clk
0:00:10.1]} 28. d7 {[%clk 0:00:28.9]} 28... Bh2+ {[%clk 0:00:01]} 29. Kxh2
{[%clk 0:00:22.5]} 29... Qe5+ {[%clk 0:00:00.9]} 30. Kg1 {[%clk 0:00:21.4]}
30... Qc7 {[%clk 0:00:01.8]} 31. Qxc7+ {[%clk 0:00:10]} 31... Kxc7 {[%clk
0:00:02.7]} 32. Rd1 {[%clk 0:00:09.4]} 32... Kxd7 {[%clk 0:00:02.3]} 33. Bxf5+
{[%clk 0:00:09.5]} 33... Kc7 {[%clk 0:00:02.5]} 34. Be4 {[%clk 0:00:10.1]} 34...
Re8 {[%clk 0:00:01.7]} 35. f3 {[%clk 0:00:10.6]} 35... Re7 {[%clk 0:00:01.8]}
36. Kf2 {[%clk 0:00:11.3]} 36... Kb6 {[%clk 0:00:02.1]} 37. g4 {[%clk 0:00:12]}
37... Kc5 {[%clk 0:00:03]} 38. Kg3 {[%clk 0:00:12.4]} 38... b5 {[%clk
0:00:03.7]} 39. h4 {[%clk 0:00:13.1]} 39... Kc4 {[%clk 0:00:03.8]} 40. Bd5+
{[%clk 0:00:12.5]} 40... Kc3 {[%clk 0:00:04]} 41. Bb3 {[%clk 0:00:12.8]} 41...
a5 {[%clk 0:00:04.5]} 42. Rd3+ {[%clk 0:00:13.4]} 42... Kb2 {[%clk 0:00:04.7]}
43. a4 {[%clk 0:00:14]} 43... bxa4 {[%clk 0:00:03.4]} 44. Bxa4 {[%clk
0:00:14.3]} 44... Rc7 {[%clk 0:00:01.1]} 45. Rd4 {[%clk 0:00:14.7]} 45... Kc3
{[%clk 0:00:00.7]} 46. Re4 {[%clk 0:00:14.1]} 46... Kd2 {[%clk 0:00:01]} 47. g5
{[%clk 0:00:13.6]} 47... Kc3 {[%clk 0:00:01.3]} 48. Kg4 {[%clk 0:00:13.8]} 48...
Kb2 {[%clk 0:00:01.9]} 49. h5 {[%clk 0:00:14.3]} 49... Ka3 {[%clk 0:00:02.2]}
50. hxg6 {[%clk 0:00:14.6]} 50... hxg6 {[%clk 0:00:03.1]} 51. Bb3 {[%clk
0:00:12.9]} 51... Rc5 {[%clk 0:00:02.5]} 52. Ra4+ {[%clk 0:00:13.3]} 52... Kb2
{[%clk 0:00:02.9]} 53. f4 {[%clk 0:00:13.6]} 53... Rb5 {[%clk 0:00:02.7]} 54.
Rc4 {[%clk 0:00:13]} 54... Rd5 {[%clk 0:00:01.7]} 55. Rc6 {[%clk 0:00:13.4]}
55... Rd2 {[%clk 0:00:01.3]} 56. Rxg6 {[%clk 0:00:13.9]} 56... Rd4 {[%clk
0:00:01]} 57. Ra6 {[%clk 0:00:13.9]} 57... Rd2 {[%clk 0:00:00.6]} 58. Rxa5
{[%clk 0:00:14.2]} 58... Rg2+ {[%clk 0:00:01]} 59. Kf5 {[%clk 0:00:14.8]} 59...
Rg1 {[%clk 0:00:01.7]} 60. g6 {[%clk 0:00:15.4]} 60... Re1 {[%clk 0:00:01]} 61.
g7 {[%clk 0:00:14.8]} 61... Re8 {[%clk 0:00:01.5]} 62. g8=Q {[%clk 0:00:15]}
62... Re7 {[%clk 0:00:01]} 63. Qh8+ {[%clk 0:00:13.8]} 63... Rg7 {[%clk
0:00:01]} 64. Qxg7+ {[%clk 0:00:13.6]} 64... Kc1 {[%clk 0:00:01]} 65. Ra1+
{[%clk 0:00:14.2]} 65... Kd2 {[%clk 0:00:01.2]} 66. Qg2+ {[%clk 0:00:15]} 66...
Kc3 {[%clk 0:00:01.1]} 67. Rd1 {[%clk 0:00:15.1]} 67... Kb4 {[%clk 0:00:00.9]}
68. c4 {[%clk 0:00:15.8]} 68... Ka5 {[%clk 0:00:00.5]} 69. Qd2+ {[%clk
0:00:16.2]} 69... Kb6 {[%clk 0:00:01]} 70. Qb4+ {[%clk 0:00:16.9]} 1-0

[Event "Early-Titled-Tuesday-Blitz-May-28-2024"]
[Site "Chess.com"]
[Date "2024.05.28"]
[Round "5"]
[White "LLRChess"]
[Black "suyu28"]
[Result "0-1"]
[WhiteElo "2579"]
[BlackElo "2771"]
[TimeControl "180+1"]
[EndTime "8:57:56 PDT"]
[Termination "suyu28 won on time"]

1. e4 {[%clk 0:03:00.9]} 1... c6 {[%clk 0:02:59]} 2. d4 {[%clk 0:02:59.8]} 2...
d5 {[%clk 0:02:59.3]} 3. exd5 {[%clk 0:02:59.5]} 3... cxd5 {[%clk 0:02:59.6]} 4.
Bd3 {[%clk 0:03:00.1]} 4... Nf6 {[%clk 0:02:58.6]} 5. h3 {[%clk 0:02:59]} 5...
g6 {[%clk 0:02:56.1]} 6. c3 {[%clk 0:02:58.5]} 6... Bf5 {[%clk 0:02:55.1]} 7.
Nf3 {[%clk 0:02:58.2]} 7... Bxd3 {[%clk 0:02:54.1]} 8. Qxd3 {[%clk 0:02:58]}
8... Nc6 {[%clk 0:02:55]} 9. O-O {[%clk 0:02:56.9]} 9... Bg7 {[%clk 0:02:55.6]}
10. Bf4 {[%clk 0:02:56.8]} 10... O-O {[%clk 0:02:55.8]} 11. Nbd2 {[%clk
0:02:57]} 11... e6 {[%clk 0:02:55.9]} 12. Rfe1 {[%clk 0:02:53.5]} 12... a6
{[%clk 0:02:53.9]} 13. Ne5 {[%clk 0:02:49.3]} 13... Nxe5 {[%clk 0:02:53.2]} 14.
dxe5 {[%clk 0:02:47.6]} 14... Nd7 {[%clk 0:02:52.3]} 15. Nf3 {[%clk 0:02:45]}
15... Qc7 {[%clk 0:02:48.5]} 16. Nd4 {[%clk 0:02:34.8]} 16... Nc5 {[%clk
0:02:39.8]} 17. Qc2 {[%clk 0:02:22.9]} 17... Ne4 {[%clk 0:02:38.8]} 18. f3
{[%clk 0:02:22.6]} 18... Nc5 {[%clk 0:02:37]} 19. h4 {[%clk 0:02:18.9]} 19... b5
{[%clk 0:02:34.8]} 20. h5 {[%clk 0:02:17.8]} 20... Rab8 {[%clk 0:02:33.9]} 21.
a3 {[%clk 0:02:11.1]} 21... Rfc8 {[%clk 0:02:32.3]} 22. Rad1 {[%clk 0:01:58.7]}
22... a5 {[%clk 0:02:31.4]} 23. Qf2 {[%clk 0:01:48.3]} 23... b4 {[%clk
0:02:29.6]} 24. hxg6 {[%clk 0:01:40.5]} 24... hxg6 {[%clk 0:02:29]} 25. Qh4
{[%clk 0:01:34.5]} 25... Na4 {[%clk 0:02:22.3]} 26. cxb4 {[%clk 0:01:28.6]}
26... Nxb2 {[%clk 0:02:13]} 27. Rc1 {[%clk 0:01:27.6]} 27... Qb6 {[%clk
0:02:13.1]} 28. Be3 {[%clk 0:01:26.5]} 28... Rxc1 {[%clk 0:02:09]} 29. Rxc1
{[%clk 0:01:22.8]} 29... Nc4 {[%clk 0:01:18]} 30. Bf2 {[%clk 0:01:21.7]} 30...
Qb7 {[%clk 0:00:49.5]} 31. f4 {[%clk 0:01:02.3]} 31... axb4 {[%clk 0:00:48.6]}
32. axb4 {[%clk 0:01:02.2]} 32... Qxb4 {[%clk 0:00:40.4]} 33. Nc6 {[%clk
0:00:54.4]} 33... Qd2 {[%clk 0:00:40]} 34. Rxc4 {[%clk 0:00:39.4]} 34... Rb1+
{[%clk 0:00:32.4]} 35. Kh2 {[%clk 0:00:38.8]} 35... dxc4 {[%clk 0:00:31.7]} 36.
Ne7+ {[%clk 0:00:19]} 36... Kf8 {[%clk 0:00:31.4]} 37. Bc5 {[%clk 0:00:17.7]}
37... Ke8 {[%clk 0:00:14.1]} 38. Nf5 {[%clk 0:00:17.8]} 38... Qd8 {[%clk
0:00:04.3]} 39. Nxg7+ {[%clk 0:00:16.8]} 39... Kd7 {[%clk 0:00:04.7]} 40. Qh7
{[%clk 0:00:07.5]} 40... Kc6 {[%clk 0:00:04.2]} 41. Be3 {[%clk 0:00:06.3]} 41...
Rb3 {[%clk 0:00:03.8]} 42. Qh3 {[%clk 0:00:05.3]} 42... c3 {[%clk 0:00:01.1]}
43. Qf3+ {[%clk 0:00:05.3]} 43... Qd5 {[%clk 0:00:01.4]} 44. Qf2 {[%clk
0:00:04]} 44... Rb2 {[%clk 0:00:01.7]} 45. Qf1 {[%clk 0:00:02.9]} 45... Qb5
{[%clk 0:00:00.9]} 46. Qf3+ {[%clk 0:00:02.7]} 46... Qd5 {[%clk 0:00:01.3]} 47.
Qf1 {[%clk 0:00:03.5]} 47... Qb5 {[%clk 0:00:02]} 48. Qf3+ {[%clk 0:00:04.1]}
48... Kc7 {[%clk 0:00:02.6]} 49. Ne8+ {[%clk 0:00:02.2]} 49... Qxe8 {[%clk
0:00:01.9]} 50. Bb6+ {[%clk 0:00:03.1]} 50... Kxb6 {[%clk 0:00:02.1]} 51. Qxc3
{[%clk 0:00:04]} 51... Qb5 {[%clk 0:00:02.1]} 52. Qd4+ {[%clk 0:00:04.1]} 52...
Ka5 {[%clk 0:00:02.5]} 53. Qd8+ {[%clk 0:00:04.8]} 53... Qb6 {[%clk 0:00:02.8]}
54. Qa8+ {[%clk 0:00:04]} 54... Kb4 {[%clk 0:00:02.9]} 55. Qf8+ {[%clk
0:00:04.1]} 55... Kc3 {[%clk 0:00:03.3]} 56. Qxf7 {[%clk 0:00:04.5]} 56... Qb7
{[%clk 0:00:03.9]} 57. Qxb7 {[%clk 0:00:02.2]} 57... Rxb7 {[%clk 0:00:04.8]} 58.
Kg3 {[%clk 0:00:03]} 58... Kd4 {[%clk 0:00:05.7]} 59. Kg4 {[%clk 0:00:03.8]}
59... Ke4 {[%clk 0:00:06.1]} 60. g3 {[%clk 0:00:04.4]} 60... Rf7 {[%clk
0:00:06.2]} 61. Kg5 {[%clk 0:00:05]} 61... Kf3 {[%clk 0:00:06.6]} 62. Kxg6
{[%clk 0:00:05.1]} 62... Rf5 {[%clk 0:00:07.3]} 0-1

[Event "Early-Titled-Tuesday-Blitz-May-28-2024"]
[Site "Chess.com"]
[Date "2024.05.28"]
[Round "5"]
[White "TheoSlade"]
[Black "profedechess93"]
[Result "1-0"]
[WhiteElo "2455"]
[BlackElo "2582"]
[TimeControl "180+1"]
[EndTime "8:58:03 PDT"]
[Termination "TheoSlade won on time"]

1. d4 {[%clk 0:03:00.9]} 1... d5 {[%clk 0:02:59.7]} 2. c4 {[%clk 0:03:01]} 2...
c6 {[%clk 0:02:55.1]} 3. cxd5 {[%clk 0:03:00.8]} 3... cxd5 {[%clk 0:02:56]} 4.
Bf4 {[%clk 0:03:00.7]} 4... Nf6 {[%clk 0:02:56.5]} 5. e3 {[%clk 0:03:00.8]} 5...
Nc6 {[%clk 0:02:56.8]} 6. Nc3 {[%clk 0:03:01.4]} 6... a6 {[%clk 0:02:57.3]} 7.
Be2 {[%clk 0:03:00.7]} 7... e6 {[%clk 0:02:58]} 8. Nf3 {[%clk 0:02:57.8]} 8...
Bd6 {[%clk 0:02:58.6]} 9. Bxd6 {[%clk 0:02:58.3]} 9... Qxd6 {[%clk 0:02:59.5]}
10. O-O {[%clk 0:02:57.9]} 10... O-O {[%clk 0:02:59.4]} 11. Rc1 {[%clk 0:02:57]}
11... e5 {[%clk 0:02:58.8]} 12. dxe5 {[%clk 0:02:56.8]} 12... Nxe5 {[%clk
0:02:59.7]} 13. Nxe5 {[%clk 0:02:55.3]} 13... Qxe5 {[%clk 0:03:00]} 14. Bf3
{[%clk 0:02:51.4]} 14... Be6 {[%clk 0:02:59.5]} 15. Qd2 {[%clk 0:02:41.9]} 15...
Rfd8 {[%clk 0:02:54.9]} 16. Rfd1 {[%clk 0:02:41.1]} 16... Rac8 {[%clk
0:02:53.3]} 17. Qd4 {[%clk 0:02:39.2]} 17... Qxd4 {[%clk 0:02:49.5]} 18. Rxd4
{[%clk 0:02:38.6]} 18... Kf8 {[%clk 0:02:25.1]} 19. Rcd1 {[%clk 0:02:38]} 19...
Ke7 {[%clk 0:01:21.3]} 20. g3 {[%clk 0:02:38]} 20... b6 {[%clk 0:00:56.9]} 21.
Kf1 {[%clk 0:02:28.9]} 21... Rc4 {[%clk 0:00:56.7]} 22. Ke2 {[%clk 0:01:43.1]}
22... b5 {[%clk 0:00:51.1]} 23. h4 {[%clk 0:01:35.4]} 23... Rxd4 {[%clk
0:00:39.8]} 24. Rxd4 {[%clk 0:01:35]} 24... Kd6 {[%clk 0:00:40.3]} 25. a3 {[%clk
0:01:25.8]} 25... Ke5 {[%clk 0:00:37.5]} 26. Rd2 {[%clk 0:01:23.7]} 26... h6
{[%clk 0:00:32.2]} 27. Bg2 {[%clk 0:01:23]} 27... g5 {[%clk 0:00:28.9]} 28. hxg5
{[%clk 0:01:22]} 28... hxg5 {[%clk 0:00:29.4]} 29. f4+ {[%clk 0:01:17.9]} 29...
gxf4 {[%clk 0:00:26]} 30. gxf4+ {[%clk 0:01:18.8]} 30... Kf5 {[%clk 0:00:12.9]}
31. Bh3+ {[%clk 0:01:12.8]} 31... Kg6 {[%clk 0:00:11.7]} 32. Bxe6 {[%clk
0:01:13.7]} 32... fxe6 {[%clk 0:00:12.2]} 33. Kf3 {[%clk 0:01:11.2]} 33... Rh8
{[%clk 0:00:10.5]} 34. Rg2+ {[%clk 0:01:11.1]} 34... Kf7 {[%clk 0:00:10.5]} 35.
Ne2 {[%clk 0:01:05.4]} 35... Rc8 {[%clk 0:00:09.5]} 36. Nd4 {[%clk 0:01:04.9]}
36... Rc1 {[%clk 0:00:10]} 37. Rc2 {[%clk 0:01:02.6]} 37... Rxc2 {[%clk
0:00:08.7]} 38. Nxc2 {[%clk 0:01:03.5]} 38... Nd7 {[%clk 0:00:09.5]} 39. Nb4
{[%clk 0:01:01.4]} 39... Nc5 {[%clk 0:00:07.6]} 40. Kg4 {[%clk 0:00:55.9]} 40...
Ke7 {[%clk 0:00:07.4]} 41. Kf3 {[%clk 0:00:48.1]} 41... Kd6 {[%clk 0:00:07.8]}
42. Ke2 {[%clk 0:00:47.9]} 42... a5 {[%clk 0:00:08]} 43. Nc2 {[%clk 0:00:43.6]}
43... Na4 {[%clk 0:00:08.3]} 44. b4 {[%clk 0:00:40.3]} 44... axb4 {[%clk
0:00:07.8]} 45. axb4 {[%clk 0:00:40.5]} 45... Nc3+ {[%clk 0:00:08.5]} 46. Kd3
{[%clk 0:00:41]} 46... Ne4 {[%clk 0:00:09.3]} 47. Nd4 {[%clk 0:00:40.3]} 47...
e5 {[%clk 0:00:08.1]} 48. Nxb5+ {[%clk 0:00:38.3]} 48... Ke6 {[%clk 0:00:09]}
49. Nc7+ {[%clk 0:00:28.2]} 49... Kd6 {[%clk 0:00:09]} 50. Ne8+ {[%clk
0:00:28.8]} 50... Ke7 {[%clk 0:00:08.9]} 51. Ng7 {[%clk 0:00:26.9]} 51... exf4
{[%clk 0:00:08.1]} 52. exf4 {[%clk 0:00:27.8]} 52... Kf6 {[%clk 0:00:08.3]} 53.
Nh5+ {[%clk 0:00:22.1]} 53... Kf5 {[%clk 0:00:08.1]} 54. Kd4 {[%clk 0:00:21.4]}
54... Ke6 {[%clk 0:00:08.7]} 55. b5 {[%clk 0:00:19]} 55... Nd6 {[%clk
0:00:08.4]} 56. b6 {[%clk 0:00:19.5]} 56... Nb7 {[%clk 0:00:05.3]} 57. Ng7+
{[%clk 0:00:16.2]} 57... Kf6 {[%clk 0:00:05.6]} 58. Ne8+ {[%clk 0:00:15.3]}
58... Kf5 {[%clk 0:00:05.4]} 59. Kxd5 {[%clk 0:00:14.4]} 59... Kxf4 {[%clk
0:00:05.6]} 60. Nd6 {[%clk 0:00:12.2]} 60... Na5 {[%clk 0:00:06.1]} 61. Kc5
{[%clk 0:00:10.7]} 61... Nb3+ {[%clk 0:00:05.5]} 62. Kc4 {[%clk 0:00:08.6]}
62... Na5+ {[%clk 0:00:05.5]} 63. Kb5 {[%clk 0:00:07.2]} 63... Nb3 {[%clk
0:00:05.2]} 64. b7 {[%clk 0:00:07.2]} 64... Nd4+ {[%clk 0:00:05.6]} 65. Kc5
{[%clk 0:00:06.3]} 65... Ne6+ {[%clk 0:00:03.7]} 66. Kc4 {[%clk 0:00:04.1]}
66... Nc7 {[%clk 0:00:00.7]} 67. b8=Q {[%clk 0:00:03.9]} 67... Ke5 {[%clk
0:00:01.1]} 68. Qxc7 {[%clk 0:00:03.4]} 1-0

[Event "Early-Titled-Tuesday-Blitz-May-28-2024"]
[Site "Chess.com"]
[Date "2024.05.28"]
[Round "5"]
[White "js20000"]
[Black "ccccvhhhj"]
[Result "1-0"]
[WhiteElo "2690"]
[BlackElo "2470"]
[TimeControl "180+1"]
[EndTime "8:58:10 PDT"]
[Termination "js20000 won by checkmate"]

1. b3 {[%clk 0:02:56.8]} 1... d5 {[%clk 0:02:56.9]} 2. Bb2 {[%clk 0:02:54.6]}
2... Nc6 {[%clk 0:02:55.8]} 3. Nf3 {[%clk 0:02:52.4]} 3... Bf5 {[%clk
0:02:51.8]} 4. e3 {[%clk 0:02:52]} 4... e6 {[%clk 0:02:46.4]} 5. Bb5 {[%clk
0:02:49.1]} 5... Nf6 {[%clk 0:02:31.6]} 6. Nd4 {[%clk 0:02:46.7]} 6... Qd7
{[%clk 0:02:25.4]} 7. Bxc6 {[%clk 0:02:38.5]} 7... bxc6 {[%clk 0:02:25.1]} 8.
Nxf5 {[%clk 0:02:39.2]} 8... exf5 {[%clk 0:02:25.7]} 9. Bxf6 {[%clk 0:02:39.7]}
9... gxf6 {[%clk 0:02:26.1]} 10. Nc3 {[%clk 0:02:35.2]} 10... Bd6 {[%clk
0:02:03.6]} 11. g3 {[%clk 0:02:25.2]} 11... Qe6 {[%clk 0:01:40.4]} 12. Ne2
{[%clk 0:02:20.9]} 12... c5 {[%clk 0:01:39.5]} 13. O-O {[%clk 0:02:00.9]} 13...
h5 {[%clk 0:01:39.2]} 14. h4 {[%clk 0:02:00.9]} 14... Rg8 {[%clk 0:01:36.2]} 15.
Kh2 {[%clk 0:01:55.8]} 15... Qe4 {[%clk 0:01:34.3]} 16. f4 {[%clk 0:01:50.9]}
16... Rg4 {[%clk 0:01:24]} 17. Nc3 {[%clk 0:01:45.7]} 17... Qe6 {[%clk
0:01:23.6]} 18. Qf3 {[%clk 0:01:41.9]} 18... c6 {[%clk 0:01:23.7]} 19. Rae1
{[%clk 0:01:40.5]} 19... O-O-O {[%clk 0:01:20.9]} 20. Nd1 {[%clk 0:01:35.2]}
20... Rdg8 {[%clk 0:01:19.8]} 21. Rg1 {[%clk 0:01:35.2]} 21... Qe4 {[%clk
0:01:12.5]} 22. Qe2 {[%clk 0:01:01.4]} 22... Qxc2 {[%clk 0:01:04]} 23. Nf2
{[%clk 0:01:01.3]} 23... R4g6 {[%clk 0:00:52.8]} 24. Qa6+ {[%clk 0:00:58.5]}
24... Kd7 {[%clk 0:00:51.6]} 25. Qxa7+ {[%clk 0:00:57]} 25... Bc7 {[%clk
0:00:45.2]} 26. Re2 {[%clk 0:00:51.9]} 26... Rb8 {[%clk 0:00:15.1]} 27. Qa6
{[%clk 0:00:42.4]} 27... Rgg8 {[%clk 0:00:12.3]} 28. Qd3 {[%clk 0:00:40.3]}
28... Qxd3 {[%clk 0:00:10.6]} 29. Nxd3 {[%clk 0:00:41.2]} 29... Bd6 {[%clk
0:00:11.5]} 30. Rc1 {[%clk 0:00:39.4]} 30... Rb5 {[%clk 0:00:11.7]} 31. Ree1
{[%clk 0:00:35.6]} 31... Ra8 {[%clk 0:00:09.8]} 32. Rc2 {[%clk 0:00:34.1]} 32...
Rba5 {[%clk 0:00:09.8]} 33. Ra1 {[%clk 0:00:21.3]} 33... Rb8 {[%clk 0:00:10.4]}
34. Rac1 {[%clk 0:00:19.7]} 34... Rba8 {[%clk 0:00:08]} 35. a4 {[%clk
0:00:19.2]} 35... c4 {[%clk 0:00:05.9]} 36. bxc4 {[%clk 0:00:20.1]} 36... Rxa4
{[%clk 0:00:06.5]} 37. cxd5 {[%clk 0:00:20.2]} 37... cxd5 {[%clk 0:00:07.4]} 38.
Ne1 {[%clk 0:00:13.2]} 38... Ra2 {[%clk 0:00:06.1]} 39. Nf3 {[%clk 0:00:12.5]}
39... Rxc2 {[%clk 0:00:05.6]} 40. Rxc2 {[%clk 0:00:12.8]} 40... Ra1 {[%clk
0:00:06.1]} 41. Nd4 {[%clk 0:00:13.1]} 41... Rd1 {[%clk 0:00:02.8]} 42. Nxf5
{[%clk 0:00:13.3]} 42... Bb4 {[%clk 0:00:03.5]} 43. d4 {[%clk 0:00:10.9]} 43...
Re1 {[%clk 0:00:02.5]} 44. Kg2 {[%clk 0:00:08.6]} 44... Bd6 {[%clk 0:00:01.4]}
45. Kf2 {[%clk 0:00:07.6]} 45... Rh1 {[%clk 0:00:01.4]} 46. Kg2 {[%clk
0:00:07.5]} 46... Re1 {[%clk 0:00:02.1]} 47. Ra2 {[%clk 0:00:07.3]} 47... Bb4
{[%clk 0:00:00.9]} 48. Kf2 {[%clk 0:00:06]} 48... Ke6 {[%clk 0:00:01.2]} 49.
Ng7+ {[%clk 0:00:05.7]} 49... Ke7 {[%clk 0:00:01.5]} 50. Rb2 {[%clk 0:00:05.9]}
50... Bc3 {[%clk 0:00:01.6]} 51. Rb7+ {[%clk 0:00:06]} 51... Kf8 {[%clk
0:00:01.6]} 52. Nf5 {[%clk 0:00:06.5]} 52... Ke8 {[%clk 0:00:01.1]} 53. Rb8+
{[%clk 0:00:06.5]} 53... Kd7 {[%clk 0:00:01.5]} 54. Rb7+ {[%clk 0:00:07]} 54...
Kc8 {[%clk 0:00:01.9]} 55. Rxf7 {[%clk 0:00:06.7]} 55... Rh1 {[%clk 0:00:02]}
56. Rxf6 {[%clk 0:00:06.5]} 56... Rh2+ {[%clk 0:00:02.4]} 57. Kf1 {[%clk
0:00:05.8]} 57... Rh1+ {[%clk 0:00:02.5]} 58. Ke2 {[%clk 0:00:05.9]} 58... Rh2+
{[%clk 0:00:02.7]} 59. Kd3 {[%clk 0:00:06.3]} 59... Bb2 {[%clk 0:00:03.4]} 60.
Ne7+ {[%clk 0:00:04.6]} 60... Kd7 {[%clk 0:00:03.2]} 61. Nxd5 {[%clk 0:00:05.5]}
61... Bc1 {[%clk 0:00:03.9]} 62. Ke4 {[%clk 0:00:05.8]} 62... Rh3 {[%clk
0:00:03.7]} 63. Rg6 {[%clk 0:00:06.2]} 63... Ke8 {[%clk 0:00:03.6]} 64. f5
{[%clk 0:00:06.7]} 64... Kf7 {[%clk 0:00:04.2]} 65. Rg5 {[%clk 0:00:07.1]} 65...
Rh1 {[%clk 0:00:03.5]} 66. f6 {[%clk 0:00:07.5]} 66... Re1 {[%clk 0:00:03.5]}
67. Rg7+ {[%clk 0:00:07.7]} 67... Kf8 {[%clk 0:00:04.2]} 68. Re7 {[%clk
0:00:05]} 68... Rf1 {[%clk 0:00:03.4]} 69. Ke5 {[%clk 0:00:05.2]} 69... Ba3
{[%clk 0:00:03.5]} 70. Ra7 {[%clk 0:00:04.2]} 70... Bb2 {[%clk 0:00:02.3]} 71.
Ke6 {[%clk 0:00:04.5]} 71... Kg8 {[%clk 0:00:02]} 72. Ra8+ {[%clk 0:00:04.4]}
72... Kh7 {[%clk 0:00:02.6]} 73. f7 {[%clk 0:00:04.8]} 73... Ba3 {[%clk
0:00:02.9]} 74. Rxa3 {[%clk 0:00:04.9]} 74... Re1 {[%clk 0:00:02.2]} 75. f8=Q
{[%clk 0:00:03.9]} 75... Rxe3+ {[%clk 0:00:02.6]} 76. Nxe3 {[%clk 0:00:04.5]}
76... Kg6 {[%clk 0:00:02.4]} 77. Qf6+ {[%clk 0:00:05]} 77... Kh7 {[%clk
0:00:02.5]} 78. Ra7+ {[%clk 0:00:05.7]} 78... Kg8 {[%clk 0:00:02.9]} 79. Qg7#
{[%clk 0:00:06.6]} 1-0